fUSD/lending_fUSD_20240704
["ID","MTS","AMOUNT","RATE_DAILY","PERIOD"]
[331205915,1720133432387,-240.37,0.00013809,2]
[331205916,1720133432396,-32653.14205946,0.0001387,2]
[331205917,1720133432408,-2658.58462952,0.0001387,2]
[331205918,1720133432418,-234.16996596,0.00013881,2]
[331205919,1720133432427,-4287.7009,0.000139,2]
[331205920,1720133432437,-327.775,0.000139,2]
[331205921,1720133432446,-28780.89586592,0.000139,2]
[331205922,1720133432458,-7447.32319545,0.000139,2]
[331205923,1720133432469,-1380.46616302,0.000139,2]
[331205924,1720133432483,-708.82661992,0.000139,2]
[331205925,1720133432494,-559.75762178,0.000139,2]
[331205926,1720133432506,-245718.22933391,0.000139,2]
[331205927,1720133432516,-7500.0,0.000139,2]
[331205928,1720133432525,-596.76,0.00013981,2]
[331205929,1720133432535,-174.32853659,0.00013994,2]
[331205930,1720133432544,-170.26250271,0.00013994,2]
[331205931,1720133432554,-178.80616544,0.00013994,2]
[331205932,1720133432563,-209.2893539,0.00013994,2]
[331205933,1720133432573,-726.73660128,0.00013994,2]
[331205934,1720133432582,-331.48589224,0.00013994,2]
[331205935,1720133432591,-461.90376345,0.00014,2]
[331205936,1720133432601,-482207.78716127,0.00014,2]
[331205937,1720133432612,-345.5,0.00014,2]
[331205939,1720133432624,-25864.30413319,0.00014,2]
[331205941,1720133432635,-862.021,0.00014,2]
[331205943,1720133432646,-3144.07254094,0.00014,2]
[331205945,1720133432656,-360.246502,0.00014,2]
[331205948,1720133432678,-1014.49527773,0.00014,2]
[331205955,1720133438019,-250.0,0.0001317,2]
[331205956,1720133438029,-939.17655856,0.000139,2]
[331205975,1720133439005,-5261.20155344,0.000139,2]
[331205978,1720133439019,-1299.621888,0.000139,2]
[331205980,1720133439029,-245.24901964,0.00013994,2]
[331205982,1720133439039,-59608.96083064,0.00014,2]
[331205984,1720133439052,-79470.61765355,0.00014,2]
[331205986,1720133439064,-1076.83267402,0.00014,2]
[331205988,1720133439076,-1404.00239837,0.00014,2]
[331205991,1720133439088,-20322.4580246,0.00014,2]
[331205993,1720133439100,-301.52429435,0.00014,2]
[331206067,1720133439997,-1596.88006637,0.00014,2]
[331206071,1720133440009,-2371.47496843,0.00014,2]
[331206073,1720133440022,-2317.16226982,0.00014,2]
[331206075,1720133440034,-340.78144659,0.00014,2]
[331206077,1720133440046,-500.0,0.00014,2]
[331206080,1720133440058,-561.97850452,0.00014,2]
[331206082,1720133440073,-776.11930093,0.00014,2]
[331206084,1720133440085,-312.3160075,0.00014,2]
[331206087,1720133440096,-574.61696002,0.00014,2]
[331206089,1720133440107,-442.88999996,0.00014,2]
[331206091,1720133440119,-9290.52634987,0.00014,2]
[331206126,1720133440451,-1725.58704882,0.00014,2]
[331206129,1720133440463,-174377.66195999,0.00014,2]
[331206131,1720133440475,-1251509.11731662,0.00014,2]
[331206394,1720133443093,-22163.18622214,0.00014,2]
[331206396,1720133443105,-9143.49931739,0.00014,2]
[331206399,1720133443119,-1026.45642444,0.00014,2]
[331206401,1720133443131,-23521.76724492,0.00014,2]
[331206403,1720133443143,-8047.36758596,0.00014,2]
[331206406,1720133443154,-777.418914,0.00014,2]
[331206408,1720133443166,-14435.04513219,0.00014,2]
[331206488,1720133443914,-4329.33041893,0.00014,2]
[331206494,1720133443964,-19757.05064113,0.00014,2]
[331206496,1720133443975,-1765.648,0.00014,2]
[331206502,1720133444022,-709.17,0.00014,2]
[331206505,1720133444034,-664.83272804,0.00014,2]
[331206507,1720133444046,-3292.164575,0.00014,2]
[331206509,1720133444058,-11334.94247699,0.00014,2]
[331206511,1720133444069,-18717.1864348,0.00014,2]
[331206513,1720133444080,-6017.81405566,0.00014,2]
[331206516,1720133444092,-17920.90906937,0.00014,2]
[331206518,1720133444103,-10184.91313959,0.00014,2]
[331206520,1720133444114,-773.50363265,0.00014,2]
[331206522,1720133444125,-650.96828781,0.00014,2]
[331206702,1720133445924,-450.94606924,0.00014,2]
[331206704,1720133445936,-282.91143549,0.00014,2]
[331206707,1720133445948,-3845.72914333,0.00014,2]
[331206709,1720133445960,-8036.765211,0.00014,2]
[331206711,1720133445972,-2162.36006971,0.00014,2]
[331206713,1720133445983,-376.58731798,0.00014,2]
[331206716,1720133445998,-2535.49260384,0.00014,2]
[331206745,1720133446266,-16344.51668327,0.00014,2]
[331206818,1720133446935,-15340.032806,0.00014,2]
[331206820,1720133446946,-10485.42545863,0.00014,2]
[331206822,1720133446958,-270729.23496051,0.00014,2]
[331208728,1720133602660,2104.0,0.00026,120]
[331208730,1720133803595,760.0,0.00031632,30]
[331208733,1720134191305,165.79,0.0001099,2]
[331208735,1720134237881,2417.33999899,0.0001099,2]
[331208736,1720134271200,-411.541,0.00011652,2]
[331208737,1720134271223,-596.52,0.00013,2]
[331208738,1720134271245,-1286.76187843,0.00013321,2]
[331208739,1720134271266,-218.0,0.00013584,2]
[331208740,1720134271287,-1876.219899,0.00013631,2]
[331208741,1720134271308,-390.5,0.00013652,2]
[331208742,1720134271332,-300.0,0.00013686,2]
[331208743,1720134271355,-2040.1,0.00013687,2]
[331208744,1720134271376,-250.0,0.00013687,2]
[331208745,1720134271398,-232.39,0.00013699,2]
[331208746,1720134271419,-564.3046,0.000138,2]
[331208747,1720134271440,-385.10220627,0.00013809,2]
[331208748,1720134271462,-800.0,0.00013867,2]
[331208749,1720134271482,-150.0,0.00013899,2]
[331208750,1720134271506,-500.0,0.000139,2]
[331208751,1720134271526,-27680.974,0.000139,2]
[331208752,1720134271548,-2778.0244,0.000139,2]
[331208753,1720134271569,-4024.3468,0.000139,2]
[331208754,1720134271594,-160.89882541,0.000139,2]
[331208755,1720134271620,-932.12,0.000139,2]
[331208756,1720134271640,-9016.1602,0.000139,2]
[331208757,1720134271666,-4987.08743529,0.000139,2]
[331208758,1720134271687,-1000.0,0.000139,2]
[331208759,1720134271706,-7500.0,0.000139,2]
[331208760,1720134271726,-1053.07384388,0.000139,2]
[331208761,1720134271748,-331.48589224,0.000139,2]
[331208762,1720134271769,-484.49106752,0.000139,2]
[331208763,1720134271790,-163.49934642,0.000139,2]
[331208764,1720134271811,-168.99,0.00013963,2]
[331208765,1720134271831,-1000.0,0.00013999,2]
[331208766,1720134271853,-673.25462007,0.00013999,2]
[331208767,1720134271879,-228044.15398547,0.00014,2]
[331208768,1720134276106,992.03500697,0.0001099,2]
[331208769,1720134322805,771.99,0.00031611,30]
[331208777,1720134493265,846.368967,0.00011199,2]
[331208778,1720134525094,1562.99457939,0.00011199,2]
[331208779,1720134545913,282.85029854,0.00011199,2]
[331208782,1720134554377,155.11456855,0.00011199,2]
[331208788,1720134631959,-518.57690782,0.00013574,2]
[331208791,1720134631973,-181.42309218,0.00013799,2]
[331208794,1720134631987,-949.15901314,0.00013799,2]
[331208795,1720134632235,-483.71393226,0.00013799,2]
[331208796,1720134632247,-1361.45276237,0.00013799,2]
[331208797,1720134632260,-869.2625146,0.00013799,2]
[331208798,1720134632270,-172.9052054,0.0001386,2]
[331208799,1720134632281,-493.7764846,0.0001386,2]
[331208800,1720134632290,-601.41493786,0.00013889,2]
[331208801,1720134632317,-152.97552707,0.00013889,2]
[331208802,1720134632326,-227.14852012,0.00013899,2]
[331208803,1720134632335,-222.39185461,0.00013899,2]
[331208804,1720134632344,-500.0,0.000139,2]
[331208805,1720134632354,-2579.51582731,0.000139,2]
[331208806,1720134632365,-2074.79105497,0.000139,2]
[331208807,1720134632378,-299.015,0.000139,2]
[331208808,1720134632389,-448.74875887,0.000139,2]
[331208809,1720134632402,-404.7199998,0.000139,2]
[331208810,1720134632413,-9137.35989155,0.000139,2]
[331208811,1720134632424,-11612.46353248,0.000139,2]
[331208812,1720134632437,-7840.0,0.000139,2]
[331208813,1720134632448,-391.9015,0.000139,2]
[331208814,1720134632459,-734.6075021,0.000139,2]
[331208815,1720134632470,-499.6,0.000139,2]
[331208816,1720134632481,-999.9006,0.000139,2]
[331208817,1720134632492,-1000.3932,0.000139,2]
[331208818,1720134632502,-627.08000007,0.000139,2]
[331208819,1720134632513,-404.72999987,0.000139,2]
[331208820,1720134632524,-600.0,0.000139,2]
[331208821,1720134632536,-255.97559429,0.000139,2]
[331208823,1720134632551,-544.02,0.000139,2]
[331208824,1720134632564,-19359.85007386,0.000139,2]
[331208825,1720134632576,-2002.00000047,0.000139,2]
[331208826,1720134632610,-615.25441392,0.000139,2]
[331208831,1720134639068,-2114.8729136,0.000139,2]
[331208832,1720134639081,-35453.20013684,0.000139,2]
[331208833,1720134639091,-7109.43752911,0.000139,2]
[331208834,1720134639103,-390.56247089,0.000139,2]
[331208835,1720134639113,-260.38917411,0.000139,2]
[331208836,1720134639351,-183.46212589,0.000139,2]
[331208838,1720134639361,-539.21697839,0.000139,2]
[331208840,1720134639372,-587.20396762,0.000139,2]
[331208843,1720134639385,-1055.98696552,0.000139,2]
[331208933,1720134640368,-262.79677064,0.000139,2]
[331208936,1720134640383,-630.9203716,0.000139,2]
[331208938,1720134640394,-5776.86568551,0.000139,2]
[331208940,1720134640406,-703.9999999,0.000139,2]
[331208942,1720134640418,-309.12639055,0.000139,2]
[331208945,1720134640429,-6671.55597476,0.000139,2]
[331208968,1720134640645,-227841.03859551,0.000139,2]
[331208970,1720134640657,-170.2625027,0.000139,2]
[331208972,1720134640669,-178.80616544,0.000139,2]
[331208974,1720134640678,-1338.87494783,0.000139,2]
[331208976,1720134640688,-365.90396338,0.00013989,2]
[331208978,1720134640697,-121572.69488296,0.00014,2]
[331208980,1720134640709,-8364.0002197,0.00014,2]
[331208982,1720134640721,-364.51668827,0.00014,2]
[331208985,1720134640732,-763.48000001,0.00014,2]
[331208987,1720134640743,-2207.49029818,0.00014,2]
[331209262,1720134643739,-976.8663,0.000139,2]
[331209264,1720134643748,-641.96293861,0.00013999,2]
[331209266,1720134643758,-33272.04203504,0.00014,2]
[331209320,1720134644176,-8212.32735719,0.00014,2]
[331209325,1720134644188,-529.7399354,0.00014,2]
[331209328,1720134644199,-294.14994472,0.00014,2]
[331209331,1720134644211,-10835.57489696,0.00014,2]
[331209334,1720134644222,-1203.47342585,0.00014,2]
[331209336,1720134644234,-840.64392545,0.00014,2]
[331209338,1720134644245,-328.7496445,0.00014,2]
[331209341,1720134644256,-1747.575,0.00014,2]
[331209343,1720134644268,-926.75240181,0.00014,2]
[331209429,1720134645150,-301.40832237,0.00014,2]
[331209432,1720134645164,-1023.82317081,0.00014,2]
[331209434,1720134645175,-411.83451691,0.00014,2]
[331209436,1720134645186,-805.58956756,0.00014,2]
[331209438,1720134645198,-559.40606601,0.00014,2]
[331209440,1720134645209,-301.616,0.00014,2]
[331209544,1720134646179,-2497.79507697,0.00014,2]
[331209547,1720134646190,-2250.53767768,0.00014,2]
[331209550,1720134646201,-322.51994525,0.00014,2]
[331209553,1720134646213,-1774.86208729,0.00014,2]
[331209557,1720134646224,-32313.05553848,0.00014,2]
[331209560,1720134646235,-2325.64980315,0.00014,2]
[331209562,1720134646246,-6000.0,0.00014,2]
[331209564,1720134646257,-326.1616791,0.00014,2]
[331209584,1720134646510,-1204.59013082,0.00014,2]
[331209586,1720134646521,-235681.67277337,0.00014,2]
[331209605,1720134646693,-768.06384375,0.00014,2]
[331209607,1720134646705,-1002.44274149,0.00014,2]
[331209609,1720134646716,-579.7,0.00014,2]
[331209611,1720134646727,-11173.27156439,0.00014,2]
[331209614,1720134646738,-7511.43041172,0.00014,2]
[331209616,1720134646749,-12916.53216078,0.00014,2]
[331209618,1720134646760,-1313.87865291,0.00014,2]
[331209620,1720134646771,-1383.40857251,0.00014,2]
[331209622,1720134646782,-33048.83433905,0.00014,2]
[331209625,1720134646792,-32951.44758523,0.00014,2]
[331209627,1720134646803,-1418.946,0.00014,2]
[331209629,1720134646814,-1462.76416002,0.00014,2]
[331209631,1720134646826,-1951.40039262,0.00014,2]
[331209633,1720134646837,-2372.81520537,0.00014,2]
[331209636,1720134646848,-824.59977352,0.00014,2]
[331209638,1720134646859,-7403.1204677,0.00014,2]
[331209640,1720134646870,-267.2327988,0.00014,2]
[331209642,1720134646881,-27330.41277066,0.00014,2]
[331209644,1720134646892,-32344.28612523,0.00014,2]
[331209647,1720134646903,-133214.89867129,0.00014,2]
[331209649,1720134646914,-47370.02553739,0.00014,2]
[331209651,1720134646925,-13513.4435892,0.00014,2]
[331209653,1720134646937,-2320.0,0.00014,2]
[331211802,1720135546453,3392.48845374,0.00011199,2]
[331211803,1720135624406,155.0,0.00011199,2]
[331212042,1720135832470,-603.50800002,0.00012264,2]
[331212043,1720135832484,-89.19199998,0.00012264,2]
[331212044,1720135832494,-250.0,0.00012802,2]
[331212045,1720135832504,-258.88603077,0.00013128,2]
[331212046,1720135832515,-474.68333876,0.00013128,2]
[331212047,1720135832525,-296.94055061,0.00013128,2]
[331212048,1720135832534,-956.61,0.00013256,2]
[331212049,1720135832544,-434.56,0.00013271,2]
[331212050,1720135832554,-1000.0,0.00013425,2]
[331212051,1720135832564,-994.0,0.00013448,2]
[331212052,1720135832574,-250.0,0.00013461,2]
[331212053,1720135832583,-155.0,0.00013472,2]
[331212054,1720135832603,-2688.98,0.00013474,2]
[331212055,1720135832612,-865.54630303,0.00013512,2]
[331212056,1720135832622,-163.65389911,0.00013516,2]
[331212057,1720135832632,-155.0,0.00013516,2]
[331212058,1720135832642,-2423.78360654,0.00013516,2]
[331212059,1720135832652,-893.37,0.00013569,2]
[331212060,1720135832662,-438.16706068,0.00013574,2]
[331212061,1720135832966,-520.14,0.00013584,2]
[331212062,1720135832982,-150.0,0.00013611,2]
[331212063,1720135832992,-175.62,0.00013612,2]
[331212064,1720135833002,-28451.65,0.00013612,2]
[331212065,1720135833014,-463.12,0.00013612,2]
[331212066,1720135833028,-318.55,0.00013699,2]
[331212067,1720135833038,-1362.38,0.00013699,2]
[331212068,1720135833048,-160.1,0.00013725,2]
[331212069,1720135833059,-235.2687,0.000138,2]
[331212070,1720135833070,-1381.1924,0.000138,2]
[331212071,1720135833080,-200.0,0.000138,5]
[331212072,1720135833095,-771.52099,0.0001386,2]
[331212073,1720135833105,-753.36122712,0.00013889,2]
[331212074,1720135833114,-727.88837222,0.00013889,2]
[331212075,1720135833124,-166.66,0.0001389,2]
[331212076,1720135833134,-499.99,0.00013899,2]
[331212077,1720135833143,-492.75515407,0.00013899,2]
[331212078,1720135833154,-4571.49681571,0.000139,2]
[331212079,1720135833164,-3601.46,0.000139,2]
[331212080,1720135833173,-921.43961343,0.000139,2]
[331212081,1720135833183,-500.0,0.000139,5]
[331212082,1720135833192,-170.2625027,0.000139,2]
[331212083,1720135833201,-865.54630303,0.000139,2]
[331212084,1720135833211,-259.814339,0.00013973,2]
[331212085,1720135833220,-227.14852012,0.00013989,2]
[331212086,1720135833230,-227.14852012,0.00013989,2]
[331212087,1720135833239,-297.36585903,0.00013989,2]
[331212088,1720135833249,-205.32220319,0.00013989,2]
[331212089,1720135833258,-2740.59105329,0.00013999,2]
[331212090,1720135833267,-411.54635958,0.00013999,2]
[331212091,1720135833277,-172.38414633,0.00013999,2]
[331212092,1720135833286,-3549.47089475,0.00013999,2]
[331212093,1720135833298,-584.59550704,0.00013999,2]
[331212094,1720135833310,-452.75892829,0.00013999,2]
[331212095,1720135833320,-2560.07662574,0.00013999,2]
[331212096,1720135833332,-12236.0,0.00013999,2]
[331212097,1720135833382,-5798.8,0.00013999,2]
[331212098,1720135833394,-3915.000005,0.00013999,2]
[331212171,1720135838469,-155.0,0.00013472,2]
[331212172,1720135838479,-235.30745469,0.00013999,2]
[331212173,1720135838488,-168.07679819,0.00013999,2]
[331212174,1720135838498,-3519.52332812,0.00014,2]
[331212175,1720135838510,-3116.23335189,0.00014,2]
[331212176,1720135838521,-10219.39772,0.00014,2]
[331212177,1720135838532,-54502.08868122,0.00014,2]
[331212178,1720135838544,-170710.53501126,0.00014,2]
[331212179,1720135838555,-22959.14839027,0.00014,2]
[331212180,1720135838567,-8472.50944622,0.00014,2]
[331212181,1720135838579,-257.47467377,0.00014,2]
[331212182,1720135838591,-1138.18072319,0.00014,2]
[331212183,1720135838606,-529.12011047,0.00014,2]
[331212184,1720135838617,-70512.55288488,0.00014,2]
[331212185,1720135838629,-81839.55947406,0.00014,2]
[331212186,1720135838640,-5999.8,0.00014,2]
[331212187,1720135838651,-1814.56851,0.00014,2]
[331212188,1720135838954,-1857.45675927,0.00014,2]
[331212352,1720135840801,-88513.95765878,0.00014,2]
[331212393,1720135841199,-32935.320011,0.00014,2]
[331212395,1720135841211,-15001.91222307,0.00014,2]
[331212397,1720135841222,-474.621015,0.00014,2]
[331212399,1720135841234,-2638.9910573,0.00014,2]
[331212401,1720135841246,-3424.5,0.00014,2]
[331212732,1720135844536,-13370.40175638,0.00014,2]
[331212859,1720135845612,-309.53224694,0.00014,2]
[331212861,1720135845624,-258.4584094,0.00014,2]
[331213308,1720135850221,-846.47514523,0.00014,2]
[331213309,1720135850233,-777.20000001,0.00014,2]
[331213311,1720135850244,-385.95730262,0.00014,2]
[331214179,1720135880466,7959.71024627,0.00031601,30]
[331214182,1720136051493,4887.67143973,0.00011,2]
[331214183,1720136142130,22038.02887842,0.000112,2]
[331214185,1720136204690,4455.74866955,0.00011199,2]
[331214187,1720136219433,524.1073643,0.00011199,2]
[331214623,1720136322542,595.76620023,0.00011199,2]
[331214624,1720136371449,209.96997035,0.00011199,2]
[331214627,1720136465563,2803.02212864,0.00011199,2]
[331214629,1720136542200,1285.41542027,0.00011199,2]
[331214630,1720136570040,3393.88143666,0.00011199,2]
[331214631,1720136607671,188944.43709543,0.00011199,2]
[331214632,1720136697097,2330.74955656,0.00011199,2]
[331214634,1720136705567,752.1,0.00010772,2]
[331214637,1720136746331,258.49877023,0.00011199,2]
[331214638,1720136759550,3387.70621626,0.00011199,2]
[331214639,1720136765298,684.98447952,0.00011199,2]
[331214640,1720136767638,155.0,0.00011199,2]
[331214782,1720136836623,395.30040255,0.00011199,2]
[331214856,1720136922947,2437.86917296,0.00011199,2]
[331214857,1720137006371,155.10841432,0.00011199,2]
[331214898,1720137032007,-689.30241408,0.000118,2]
[331214921,1720137032067,-166.87586837,0.000118,2]
[331214925,1720137032078,-97.12413163,0.00012273,2]
[331214929,1720137032090,-57.87586837,0.00012273,2]
[331214932,1720137032100,-227.11,0.00012482,2]
[331214935,1720137032113,-175.62,0.0001251,2]
[331214938,1720137032122,-447.39,0.00012516,2]
[331214942,1720137032132,-1229.72198941,0.00012654,2]
[331214946,1720137032149,-564.84801059,0.00012654,2]
[331214949,1720137032159,-200.44220993,0.00012687,2]
[331214952,1720137032175,-799.55779007,0.00012687,2]
[331214954,1720137032184,-157.28,0.00012749,2]
[331214956,1720137032194,-582.56220992,0.00012826,2]
[331214959,1720137032226,-448.12958754,0.00012826,2]
[331214960,1720137032238,-142.30820254,0.00012826,2]
[331214961,1720137032247,-168.03,0.00012889,2]
[331214962,1720137032259,-150.0,0.00012904,2]
[331214963,1720137032269,-290.57,0.00012904,2]
[331214964,1720137032279,-250.0,0.00012919,2]
[331214965,1720137032289,-250.0,0.00012943,2]
[331214966,1720137032299,-499.99,0.00012943,2]
[331214967,1720137032308,-376.29,0.00012948,2]
[331214968,1720137032318,-386.98,0.00012948,2]
[331214969,1720137032332,-157.28,0.0001297,2]
[331214970,1720137032342,-752.1,0.00013036,2]
[331214971,1720137032352,-1781.84804876,0.00013128,2]
[331214972,1720137032364,-382.80000414,0.00013128,2]
[331214973,1720137032376,-1013.87325221,0.00013128,2]
[331214974,1720137032386,-848.32468598,0.00013128,2]
[331214975,1720137034936,-206.91319845,0.00013128,2]
[331214976,1720137034946,-157.28,0.00013192,2]
[331214977,1720137034956,-157.28,0.00013413,2]
[331214978,1720137034965,-628.02,0.00013472,2]
[331214980,1720137034975,-9999.99,0.00013472,2]
[331214982,1720137034985,-155.14785367,0.00013472,2]
[331214984,1720137034994,-1066.74500913,0.00013516,2]
[331214986,1720137035004,-187.7577397,0.00013516,2]
[331214988,1720137035013,-1282.21774417,0.00013516,2]
[331214990,1720137035023,-200.0,0.000136,4]
[331214992,1720137035032,-153.56,0.00013699,2]
[331214995,1720137035041,-200.0,0.00013699,2]
[331214996,1720137035051,-303.52,0.00013699,2]
[331214998,1720137035061,-500.0,0.000137,5]
[331215001,1720137035071,-150.0,0.000137,2]
[331215003,1720137035080,-170.51202663,0.00013723,2]
[331215005,1720137035092,-214.59017964,0.00013723,2]
[331215007,1720137035101,-754.22229355,0.00013759,2]
[331215009,1720137035113,-3372.8496,0.000138,2]
[331215011,1720137035123,-700.0,0.000138,5]
[331215013,1720137035132,-708.33792681,0.000138,2]
[331215015,1720137035143,-315.7795185,0.000138,2]
[331215018,1720137035158,-696.77431602,0.000138,2]
[331215020,1720137035169,-654.93333867,0.000138,2]
[331215022,1720137035178,-134.41391618,0.0001386,2]
[331215024,1720137035190,-508.52024382,0.0001386,2]
[331215026,1720137035199,-141.49315264,0.00013899,2]
[331215028,1720137035211,-993.8901718,0.00013899,2]
[331215031,1720137035221,-213.55733381,0.00013899,2]
[331215033,1720137035230,-474.80233104,0.00013899,2]
[331215035,1720137035240,-1702.658338,0.000139,2]
[331215037,1720137035257,-182.08348635,0.000139,2]
[331215040,1720137035271,-12507.2432888,0.000139,2]
[331215042,1720137035284,-360.35116936,0.000139,2]
[331215044,1720137035296,-252.43084985,0.000139,2]
[331215127,1720137038210,-1089.37693157,0.000139,2]
[331215129,1720137038222,-977.69249947,0.000139,2]
[331215131,1720137038234,-335.76750053,0.000139,2]
[331215133,1720137038247,-571.20035,0.000139,2]
[331215137,1720137039487,-3102.14001864,0.000139,2]
[331215138,1720137039600,-571.786,0.000139,2]
[331215139,1720137039615,-5283.43737236,0.000139,2]
[331215140,1720137039628,-7832.93162208,0.000139,2]
[331215141,1720137039640,-288.2889085,0.000139,2]
[331215142,1720137039653,-686.53333975,0.000139,2]
[331215580,1720137044064,-987.22897559,0.000139,2]
[331215614,1720137044308,-35736.3529148,0.000139,2]
[331215617,1720137044320,-1011.59816096,0.000139,2]
[331215621,1720137044332,-1512.57679038,0.000139,2]
[331215625,1720137044347,-1212.44429205,0.000139,2]
[331215635,1720137044384,-266.36886457,0.000139,2]
[331215641,1720137044395,-1659.0362676,0.000139,2]
[331215645,1720137044406,-33340.24392775,0.000139,2]
[331215648,1720137044419,-82341.77665539,0.000139,2]
[331215650,1720137044428,-565.9024,0.000139,2]
[331215651,1720137044437,-4526.95589115,0.000139,2]
[331215652,1720137044447,-1000.0,0.000139,5]
[331215653,1720137044456,-176.66391202,0.000139,2]
[331215654,1720137044465,-178.80616544,0.000139,2]
[331215655,1720137044475,-183.25174718,0.000139,2]
[331215656,1720137044484,-322.994045,0.000139,2]
[331215657,1720137044495,-11627.782321,0.00013989,2]
[331215658,1720137044505,-199.46340719,0.00013989,2]
[331215659,1720137044515,-155.0,0.00013989,2]
[331215660,1720137044524,-155.0,0.00013989,2]
[331215661,1720137044534,-5922.04166492,0.00013999,2]
[331215663,1720137044546,-211.47465837,0.00013999,2]
[331215665,1720137044556,-150.0,0.00013999,2]
[331215666,1720137044565,-585262.88865872,0.00014,2]
[331215669,1720137044578,-219902.94640916,0.00014,2]
[331215671,1720137044587,-461.52495304,0.00014,2]
[331215673,1720137044596,-255833.48331202,0.00014,2]
[331215675,1720137044607,-2807.8000002,0.00014,2]
[331215677,1720137044620,-418.27070253,0.00014,2]
[331215684,1720137044677,-1791.76807849,0.00014,2]
[331215686,1720137044688,-3776.76316371,0.00014,2]
[331215689,1720137044699,-1096.04159675,0.00014,2]
[331215691,1720137044711,-4341.68845553,0.00014,2]
[331215693,1720137044722,-2757.99397552,0.00014,2]
[331215695,1720137044733,-107114.39573481,0.00014,2]
[331215698,1720137044744,-1013.27421864,0.00014,2]
[331215700,1720137044756,-570.0,0.00014,2]
[331215702,1720137044767,-397.66172814,0.00014,2]
[331215704,1720137044779,-6536.68710222,0.00014,2]
[331215718,1720137044850,-806.1100004,0.00014,2]
[331215721,1720137044861,-899.58260577,0.00014,2]
[331215724,1720137044874,-888.50000003,0.00014,2]
[331215728,1720137044886,-251.86,0.00014,2]
[331215730,1720137044896,-7416.18746697,0.00014,2]
[331215732,1720137044907,-4043.23692891,0.00014,2]
[331215734,1720137044918,-2145.39623885,0.00014,2]
[331215737,1720137044929,-923.98407,0.00014,2]
[331215739,1720137044941,-5657.36196551,0.00014,2]
[331215741,1720137044952,-12611.58875453,0.00014,2]
[331215875,1720137046161,-626.19462444,0.00014,2]
[331215877,1720137046175,-263879.78347251,0.00014,2]
[331215882,1720137046211,-11376.32190347,0.00014,2]
[331215885,1720137046225,-2495.58714316,0.00014,2]
[331215887,1720137046239,-12874.38635967,0.00014,2]
[331215889,1720137046252,-3667.15740533,0.00014,2]
[331215891,1720137046268,-2729.59830795,0.00014,2]
[331215894,1720137046284,-256.3849288,0.00014,2]
[331215896,1720137046298,-412.63836193,0.00014,2]
[331215899,1720137046321,-12387.60499801,0.00014,2]
[331216302,1720137050062,-1437.975,0.00013964,2]
[331216307,1720137050074,-769.94999999,0.00013964,2]
[331216312,1720137050085,-664.1696692,0.00013964,2]
[331216317,1720137050096,-469.65,0.00013964,2]
[331216326,1720137050129,-885.7486451,0.00013964,2]
[331216330,1720137050138,-158.27328506,0.00013964,2]
[331216333,1720137050148,-201.35143862,0.00013999,2]
[331216336,1720137050157,-1830.62663121,0.00013999,2]
[331216339,1720137050168,-575.37945153,0.00013999,2]
[331216342,1720137050179,-3201.88579846,0.00013999,2]
[331216347,1720137050195,-314.14978372,0.00013999,2]
[331216350,1720137050204,-820.59223128,0.00014,2]
[331216352,1720137050215,-662.63936826,0.00014,2]
[331216356,1720137050226,-14325.86896,0.00014,2]
[331216363,1720137050266,-389.63124367,0.00014,2]
[331216366,1720137050279,-2280.0,0.00014,2]
[331216368,1720137050293,-1586.19524832,0.00014,2]
[331216370,1720137050304,-279.84981534,0.00014,2]
[331216373,1720137050316,-6254.49072629,0.00014,2]
[331216380,1720137050384,-1154.81924644,0.00014,2]
[331216382,1720137050395,-758.50515589,0.00014,2]
[331216385,1720137050410,-1151.97,0.00014,2]